[Event "Championnat du monde jeunes U12"]
[Date "2024.11.24"]
[White "Park, Onyoo"]
[Black "Huang, Hao-Xuan"]
[WhiteElo "1710"]
[BlackElo "1516"]
[Round "9.57"]
[Result "1-0"]
[TimeControl "5400+30"]

1. d4 {[%clk 1:30:42]} 1... d5 {[%clk 1:30:37]} 2. c4 {[%clk 1:30:44]} 2... c6
{[%clk 1:29:13]} 3. cxd5 {[%clk 1:26:49]} 3... cxd5 {[%clk 1:29:19]} 4. Nc3
{[%clk 1:27:10]} 4... Nf6 {[%clk 1:27:22]} 5. Bg5 {[%clk 1:27:24]} 5... Nc6
{[%clk 1:26:25]} 6. Bxf6 {[%clk 1:27:29]} 6... exf6 {[%clk 1:26:02]} 7. e3
{[%clk 1:27:45]} 7... Bb4 {[%clk 1:21:02]} 8. Ne2 {[%clk 1:18:46]} 8... Bg4
{[%clk 1:17:41]} 9. Qb3 {[%clk 1:14:02]} 9... Qd7 {[%clk 1:05:29]} 10. Nf4
{[%clk 1:06:52]} 10... Rd8 {[%clk 1:02:52]} 11. h3 {[%clk 1:06:07]} 11... Be6
{[%clk 1:00:05]} 12. Be2 {[%clk 1:05:46]} 12... O-O {[%clk 0:58:43]} 13. Bf3
{[%clk 0:56:22]} 13... Bxc3+ 14. Qxc3 {[%clk 0:56:10]} 14... Rc8 {[%clk
0:51:38]} 15. Qd2 {[%clk 0:56:13]} 15... Rfe8 {[%clk 0:46:49]} 16. O-O {[%clk
0:56:07]} 16... Ne7 {[%clk 0:39:28]} 17. Rac1 {[%clk 0:48:20]} 17... Nf5 {[%clk
0:37:48]} 18. Rxc8 {[%clk 0:39:55]} 18... Rxc8 {[%clk 0:37:58]} 19. Rc1 {[%clk
0:37:15]} 19... Rc6 {[%clk 0:34:03]} 20. Rxc6 {[%clk 0:30:47]} 20... Qxc6 {[%clk
0:33:16]} 21. Ne2 {[%clk 0:11:38]} 21... h6 {[%clk 0:28:20]} 22. Nc3 {[%clk
0:09:05]} 22... Nd6 {[%clk 0:24:28]} 23. Ne2 {[%clk 0:06:32]} 23... Nc4 {[%clk
0:17:06]} 24. Qc3 {[%clk 0:06:09]} 24... Qb6 {[%clk 0:14:01]} 25. b3 {[%clk
0:06:13]} 25... Na3 {[%clk 0:12:52]} 26. Nf4 {[%clk 0:05:45]} 26... Qc6 {[%clk
0:06:45]} 27. Qc5 {[%clk 0:05:05]} 27... Qxc5 {[%clk 0:04:06]} 28. dxc5 {[%clk
0:05:28]} 28... Bf5 {[%clk 0:03:07]} 29. Nxd5 {[%clk 0:05:14]} 29... Kf8 {[%clk
0:02:37]} 30. Kf1 {[%clk 0:03:11]} 30... Ke8 {[%clk 0:02:15]} 31. Nc3 {[%clk
0:02:51]} 31... b6 {[%clk 0:01:30]} 32. Be4 {[%clk 0:01:50]} 32... Be6 {[%clk
0:01:08]} 33. cxb6 {[%clk 0:01:32]} 33... axb6 {[%clk 0:01:26]} 34. Ke2 {[%clk
0:01:19]} 34... Kd7 {[%clk 0:01:21]} 35. Bd5 {[%clk 0:01:25]} 35... Kd6 {[%clk
0:00:54]} 36. Bxe6 {[%clk 0:01:38]} 36... fxe6 {[%clk 0:01:13]} 37. Kd3 {[%clk
0:01:49]} 37... f5 {[%clk 0:00:44]} 38. f4 {[%clk 0:01:06]} 38... Kc5 {[%clk
0:00:40]} 39. Ne2 {[%clk 0:00:48]} 39... Kd5 {[%clk 0:00:35]} 40. Nc3+ {[%clk
0:01:03]} 40... Kc5 {[%clk 0:00:54]} 41. e4 {[%clk 0:01:08]} 41... b5 {[%clk
0:00:34]} 42. Ne2 {[%clk 0:00:52]} 42... g6 {[%clk 0:00:33]} 43. Nd4 {[%clk
0:00:38]} 43... Kd6 {[%clk 0:00:47]} 44. exf5 {[%clk 0:00:31]} 44... exf5 {[%clk
0:00:42]} 45. Kc3 {[%clk 0:00:50]} 45... Kd5 {[%clk 0:00:44]} 46. Kd3 {[%clk
0:00:59]} 46... h5 {[%clk 0:00:39]} 47. Nf3 {[%clk 0:01:11]} 47... Ke6 {[%clk
0:00:37]} 48. Kc3 {[%clk 0:01:26]} 48... Nb1+ {[%clk 0:00:39]} 49. Kb2 {[%clk
0:01:39]} 49... Nd2 {[%clk 0:00:43]} 50. Nxd2 {[%clk 0:01:58]} 50... Kd5 {[%clk
0:01:03]} 51. Kc3 {[%clk 0:02:18]} 51... Kc5 {[%clk 0:01:12]} 52. a4 {[%clk
0:02:31]} 52... b4+ {[%clk 0:01:02]} 53. Kd3 {[%clk 0:02:52]} 53... Kd5 {[%clk
0:01:16]} 54. a5 {[%clk 0:03:07]} 54... Kc5 {[%clk 0:01:34]} 55. Nc4 {[%clk
0:03:27]} 55... Kb5 {[%clk 0:01:40]} 56. Kd4 {[%clk 0:03:38]} 56... Kc6 {[%clk
0:01:40]} 57. a6 {[%clk 0:03:55]} 57... h4 {[%clk 0:01:41]} 58. Ke5 {[%clk
0:04:02]} 58... Kc7 {[%clk 0:01:53]} 59. Kf6 {[%clk 0:04:16]} 59... Kb8 {[%clk
0:02:10]} 60. Kxg6 {[%clk 0:04:35]} 60... Ka7 {[%clk 0:02:30]} 61. Kxf5 {[%clk
0:05:00]} 61... Kxa6 {[%clk 0:02:34]} 62. Ke6 {[%clk 0:05:20]} 62... Kb5 {[%clk
0:02:39]} 63. f5 {[%clk 0:05:35]} 63... Kc5 {[%clk 0:02:42]} 64. f6 {[%clk
0:05:53]} 64... Kd4 {[%clk 0:03:06]} 65. f7 {[%clk 0:06:18]} 65... Kc3 {[%clk
0:03:31]} 66. Na5 {[%clk 0:06:44]} 66... Kb2 {[%clk 0:03:43]} 67. f8=Q {[%clk
0:07:05]} 67... Ka3 {[%clk 0:03:57]} 68. Qc5 {[%clk 0:07:15]} 68... Ka2 {[%clk
0:03:58]} 69. Qc2+ {[%clk 0:07:39]} 69... Ka1 {[%clk 0:04:14]} 70. Qe2 {[%clk
0:08:03]} 70... Kb1 {[%clk 0:04:34]} 71. Nc4 {[%clk 0:08:23]} 71... Kc1 {[%clk
0:04:54]} 72. Qd2+ {[%clk 0:08:43]} 72... Kb1 {[%clk 0:05:09]} 73. Qb2# {[%clk
0:09:07]} 1-0

[Variant "Standard"]
[Site "Europe Echecs"]

[Event "Championnat du monde jeunes U12"]
[Date "2024.11.25"]
[White "Aansh Nandan Nerurkar"]
[Black "Platonovs, Nikolajs"]
[WhiteElo "2247"]
[BlackElo "1969"]
[Round "10.4"]
[Result "1-0"]
[TimeControl "5400+30"]

1. e4 {[%clk 1:30:58]} 1... c5 {[%clk 1:30:57]} 2. Nf3 {[%clk 1:31:21]} 2... d6
{[%clk 1:31:22]} 3. Bb5+ {[%clk 1:31:03]} 3... Nd7 {[%clk 1:31:47]} 4. a4 {[%clk
1:31:24]} 4... Nf6 {[%clk 1:31:57]} 5. Nc3 {[%clk 1:31:36]} 5... g6 {[%clk
1:31:36]} 6. a5 {[%clk 1:31:56]} 6... Bg7 {[%clk 1:31:26]} 7. O-O {[%clk
1:32:17]} 7... O-O {[%clk 1:31:45]} 8. d3 {[%clk 1:32:29]} 8... a6 {[%clk
1:32:02]} 9. Bc4 {[%clk 1:32:39]} 9... b5 {[%clk 1:32:16]} 10. axb6 {[%clk
1:32:59]} 10... a5 {[%clk 1:32:27]} 11. Bg5 {[%clk 1:30:49]} 11... Nxb6 {[%clk
1:31:42]} 12. Bb3 {[%clk 1:30:39]} 12... Bd7 {[%clk 1:28:59]} 13. e5 {[%clk
1:24:55]} 13... dxe5 {[%clk 1:25:26]} 14. Nxe5 {[%clk 1:22:14]} 14... a4 {[%clk
1:24:46]} 15. Bc4 {[%clk 1:21:46]} 15... Qc7 {[%clk 1:11:23]} 16. Re1 {[%clk
1:17:51]} 16... e6 {[%clk 1:00:42]} 17. Qf3 {[%clk 1:09:10]} 17... Nfd5 {[%clk
1:00:51]} 18. Bxd5 {[%clk 1:08:59]} 18... exd5 {[%clk 1:00:54]} 19. Bf6 {[%clk
1:03:15]} 19... Qd6 {[%clk 0:53:41]} 20. Nxd7 {[%clk 1:02:35]} 20... Qxd7 {[%clk
0:54:00]} 21. g3 {[%clk 1:00:09]} 21... Rfe8 {[%clk 0:52:19]} 22. Bxg7 {[%clk
0:59:12]} 22... Kxg7 {[%clk 0:52:44]} 23. Qf4 {[%clk 0:57:48]} 23... Rxe1+
{[%clk 0:34:25]} 24. Rxe1 {[%clk 0:57:36]} 24... h5 {[%clk 0:25:38]} 25. Qe5+
{[%clk 0:55:02]} 25... Kg8 {[%clk 0:25:18]} 26. Qf6 {[%clk 0:53:10]} 26... d4
{[%clk 0:22:48]} 27. Ne4 {[%clk 0:49:11]} 27... Nd5 {[%clk 0:23:09]} 28. Qg5
{[%clk 0:49:31]} 28... Re8 {[%clk 0:20:40]} 29. Ra1 {[%clk 0:49:22]} 29... Kg7
{[%clk 0:19:07]} 30. Nxc5 {[%clk 0:47:59]} 30... Qc6 {[%clk 0:19:14]} 31. Nxa4
{[%clk 0:47:37]} 31... Nb4 {[%clk 0:16:21]} 32. Qc5 {[%clk 0:39:46]} 32... Qxc5
33. Nxc5 {[%clk 0:40:15]} 33... Nxc2 {[%clk 0:16:49]} 34. Rc1 {[%clk 0:38:06]}
34... Nb4 {[%clk 0:14:32]} 35. Kf1 {[%clk 0:36:55]} 35... Nc6 {[%clk 0:10:57]}
36. Rc4 {[%clk 0:36:00]} 36... Ne5 {[%clk 0:08:30]} 37. Rc1 {[%clk 0:30:38]}
37... Nf3 {[%clk 0:07:32]} 38. h4 {[%clk 0:30:48]} 38... Rb8 {[%clk 0:05:59]}
39. Ke2 {[%clk 0:30:48]} 39... Ne5 {[%clk 0:06:04]} 40. Rc2 {[%clk 0:31:01]}
40... Ng4 {[%clk 0:05:24]} 41. Ne4 {[%clk 0:27:48]} 41... Re8 {[%clk 0:02:38]}
42. Kf1 {[%clk 0:26:30]} 42... Rb8 {[%clk 0:02:39]} 43. Nd2 {[%clk 0:23:41]}
43... Ne5 {[%clk 0:02:38]} 44. Ke2 {[%clk 0:24:10]} 44... Re8 {[%clk 0:02:44]}
45. Nf3 {[%clk 0:24:27]} 45... Ng4+ {[%clk 0:01:52]} 46. Kf1 {[%clk 0:24:37]}
46... Rb8 {[%clk 0:01:50]} 47. Ke2 {[%clk 0:23:24]} 47... Re8+ {[%clk 0:02:16]}
48. Kd1 {[%clk 0:23:47]} 48... Rb8 {[%clk 0:02:01]} 49. Re2 {[%clk 0:23:31]}
49... Rc8 {[%clk 0:01:59]} 50. Nd2 {[%clk 0:22:51]} 50... Nf6 {[%clk 0:01:31]}
51. Nc4 {[%clk 0:23:04]} 51... Rb8 {[%clk 0:01:36]} 52. Re7 {[%clk 0:22:55]}
52... Ng4 {[%clk 0:00:47]} 53. f3 {[%clk 0:22:36]} 53... Nh6 {[%clk 0:00:35]}
54. Re4 {[%clk 0:19:00]} 54... Nf5 {[%clk 0:00:41]} 55. g4 {[%clk 0:19:20]}
55... hxg4 {[%clk 0:01:04]} 56. Rxg4 {[%clk 0:19:00]} 56... Ne3+ {[%clk
0:00:52]} 57. Nxe3 {[%clk 0:19:23]} 57... dxe3 {[%clk 0:01:21]} 58. b4 {[%clk
0:19:26]} 58... f5 {[%clk 0:01:33]} 59. Rc4 {[%clk 0:19:38]} 59... Rf8 {[%clk
0:00:40]} 60. b5 {[%clk 0:16:12]} 60... f4 {[%clk 0:00:37]} 61. b6 {[%clk
0:16:33]} 61... Rb8 {[%clk 0:00:38]} 62. Rxf4 {[%clk 0:16:44]} 62... Rxb6 {[%clk
0:01:00]} 63. Ke2 {[%clk 0:17:09]} 1-0

[Variant "Standard"]
[Site "Europe Echecs"]

[Event "Championnat du monde jeunes U12"]
[Date "2024.11.25"]
[White "Stepanyan, Davit"]
[Black "Abdsattar, Alisher"]
[WhiteElo "2011"]
[BlackElo "2082"]
[Round "10.9"]
[Result "0-1"]
[TimeControl "5400+30"]

1. d4 {[%clk 1:30:56]} 1... Nf6 {[%clk 1:30:49]} 2. c4 {[%clk 1:31:23]} 2... g6
{[%clk 1:31:14]} 3. Nc3 {[%clk 1:31:44]} 3... Bg7 {[%clk 1:31:41]} 4. e4 {[%clk
1:32:06]} 4... d6 {[%clk 1:32:08]} 5. Nf3 {[%clk 1:32:26]} 5... O-O {[%clk
1:32:31]} 6. Be2 {[%clk 1:32:47]} 6... e5 {[%clk 1:32:57]} 7. O-O {[%clk
1:33:05]} 7... Nc6 {[%clk 1:33:23]} 8. d5 {[%clk 1:33:31]} 8... Ne7 {[%clk
1:33:50]} 9. Ne1 {[%clk 1:33:48]} 9... Nd7 {[%clk 1:33:45]} 10. f3 {[%clk
1:31:32]} 10... f5 {[%clk 1:34:09]} 11. g4 {[%clk 1:31:57]} 11... Kh8 {[%clk
1:30:29]} 12. Bd2 {[%clk 1:30:15]} 12... Ng8 {[%clk 1:28:50]} 13. Ng2 {[%clk
1:29:15]} 13... Bf6 {[%clk 1:21:08]} 14. exf5 {[%clk 1:17:44]} 14... gxf5 {[%clk
1:21:30]} 15. gxf5 {[%clk 1:18:07]} 15... Ne7 {[%clk 1:15:13]} 16. Ne3 {[%clk
1:17:50]} 16... Bg5 {[%clk 1:03:39]} 17. Ne4 {[%clk 1:14:13]} 17... Bf4 {[%clk
0:57:00]} 18. Ng3 {[%clk 1:12:54]} 18... Nf6 {[%clk 0:55:44]} 19. Bd3 {[%clk
1:08:59]} 19... Qe8 {[%clk 0:47:57]} 20. Ng2 {[%clk 1:04:22]} 20... Bxd2 {[%clk
0:38:55]} 21. Qxd2 {[%clk 1:04:45]} 21... Nh5 {[%clk 0:38:39]} 22. Nxh5 {[%clk
1:03:30]} 22... Qxh5 {[%clk 0:39:03]} 23. f4 {[%clk 1:03:42]} 23... Bxf5 {[%clk
0:37:08]} 24. fxe5 {[%clk 0:58:32]} 24... dxe5 {[%clk 0:32:24]} 25. Rae1 {[%clk
0:54:13]} 25... Ng6 {[%clk 0:31:01]} 26. Bxf5 {[%clk 0:43:33]} 26... Rxf5 {[%clk
0:31:28]} 27. Rxf5 {[%clk 0:43:21]} 27... Qxf5 {[%clk 0:31:57]} 28. Qe2 {[%clk
0:42:29]} 28... Rg8 {[%clk 0:31:06]} 29. Kh1 {[%clk 0:39:48]} 29... Rf8 {[%clk
0:29:01]} 30. Rd1 {[%clk 0:38:17]} 30... e4 {[%clk 0:16:59]} 31. c5 {[%clk
0:34:50]} 31... Ne5 {[%clk 0:16:46]} 32. Ne3 {[%clk 0:34:01]} 32... Qh3 {[%clk
0:15:28]} 33. Rf1 {[%clk 0:33:28]} 33... Nf3 {[%clk 0:12:08]} 34. b4 {[%clk
0:28:11]} 34... Rg8 {[%clk 0:10:30]} 35. d6 {[%clk 0:26:43]} 35... cxd6 {[%clk
0:10:30]} 36. cxd6 {[%clk 0:27:05]} 36... Rg6 {[%clk 0:08:30]} 37. Rc1 {[%clk
0:12:12]} 37... Rxd6 {[%clk 0:05:39]} 38. Qb2+ {[%clk 0:11:48]} 38... Kg8 {[%clk
0:05:55]} 39. Qg2+ {[%clk 0:12:10]} 39... Qxg2+ {[%clk 0:06:21]} 40. Kxg2 {[%clk
0:12:34]} 40... Rd7 {[%clk 0:02:40]} 41. Rc4 {[%clk 0:10:31]} 41... Nd2 {[%clk
0:02:48]} 42. Rc8+ {[%clk 0:10:03]} 42... Kf7 {[%clk 0:03:04]} 43. Kg3 {[%clk
0:09:46]} 43... Ke6 {[%clk 0:03:05]} 44. Re8+ {[%clk 0:08:33]} 44... Kd6 {[%clk
0:02:09]} 45. h4 {[%clk 0:07:42]} 45... Kc6 {[%clk 0:01:50]} 46. a4 {[%clk
0:05:46]} 46... Rf7 {[%clk 0:01:30]} 47. Ng4 {[%clk 0:05:44]} 47... Kd7 {[%clk
0:01:23]} 48. Rh8 {[%clk 0:04:12]} 48... Ke7 {[%clk 0:01:01]} 49. b5 {[%clk
0:02:03]} 49... Nc4 {[%clk 0:00:55]} 50. Nh6 {[%clk 0:01:38]} 50... Rf3+ {[%clk
0:00:45]} 51. Kh2 {[%clk 0:00:32]} 51... e3 {[%clk 0:00:48]} 52. Rxh7+ {[%clk
0:00:48]} 52... Kd6 {[%clk 0:01:02]} 53. Rh8 {[%clk 0:00:34]} 53... e2 {[%clk
0:01:21]} 54. Re8 {[%clk 0:00:58]} 54... Ne3 {[%clk 0:01:10]} 55. Nf5+ {[%clk
0:00:33]} 55... Kd7 {[%clk 0:01:08]} 0-1

[Variant "Standard"]
[Site "Europe Echecs"]

[Event "Championnat du monde jeunes U12"]
[Date "2024.11.25"]
[White "Nguyen, Khoi"]
[Black "Kleschevnikov, Arseny"]
[WhiteElo "1994"]
[BlackElo "1893"]
[Round "10.20"]
[Result "1/2-1/2"]
[TimeControl "5400+30"]

1. c4 {[%clk 1:30:59]} 1... e6 {[%clk 1:30:57]} 2. Nf3 {[%clk 1:31:25]} 2... d5
{[%clk 1:31:17]} 3. g3 {[%clk 1:31:49]} 3... Nf6 {[%clk 1:31:30]} 4. Bg2 {[%clk
1:32:12]} 4... d4 {[%clk 1:30:14]} 5. O-O {[%clk 1:32:31]} 5... c5 {[%clk
1:30:40]} 6. e3 {[%clk 1:32:57]} 6... Nc6 {[%clk 1:30:44]} 7. exd4 {[%clk
1:33:21]} 7... cxd4 {[%clk 1:31:11]} 8. d3 {[%clk 1:33:43]} 8... Bd6 {[%clk
1:31:18]} 9. Bg5 {[%clk 1:34:06]} 9... h6 {[%clk 1:31:42]} 10. Bxf6 {[%clk
1:34:33]} 10... Qxf6 {[%clk 1:32:09]} 11. Nbd2 {[%clk 1:34:57]} 11... Qe7 {[%clk
1:32:13]} 12. Re1 {[%clk 1:33:29]} 12... O-O {[%clk 1:32:29]} 13. a3 {[%clk
1:33:43]} 13... a5 {[%clk 1:28:47]} 14. Nb3 {[%clk 1:32:34]} 14... Qf6 {[%clk
1:27:24]} 15. c5 {[%clk 1:32:36]} 15... Bc7 {[%clk 1:23:31]} 16. Rc1 {[%clk
1:32:44]} 16... e5 {[%clk 1:15:37]} 17. Nbd2 {[%clk 1:27:32]} 17... Re8 {[%clk
1:05:32]} 18. Qc2 {[%clk 1:07:21]} 18... Qd8 {[%clk 0:44:04]} 19. Nc4 {[%clk
1:00:44]} 19... Kh8 {[%clk 0:29:51]} 20. Nfd2 {[%clk 0:46:28]} 20... f5 {[%clk
0:29:56]} 21. Nd6 {[%clk 0:41:55]} 21... Bxd6 {[%clk 0:29:34]} 22. cxd6 {[%clk
0:42:17]} 22... Qxd6 {[%clk 0:24:01]} 23. Nc4 {[%clk 0:42:38]} 23... Qf6 {[%clk
0:20:16]} 24. f4 {[%clk 0:41:25]} 24... e4 {[%clk 0:15:02]} 25. dxe4 {[%clk
0:40:47]} 25... fxe4 {[%clk 0:15:27]} 26. Bxe4 {[%clk 0:40:51]} 26... Bh3 {[%clk
0:12:10]} 27. Qd3 {[%clk 0:35:05]} 27... Rad8 {[%clk 0:10:52]} 28. Nd2 {[%clk
0:35:20]} 28... Qd6 {[%clk 0:07:07]} 29. Nf3 {[%clk 0:35:20]} 29... Be6 {[%clk
0:06:40]} 30. Re2 {[%clk 0:14:03]} 30... Bd5 {[%clk 0:06:22]} 31. Rce1 {[%clk
0:14:22]} 31... Bxe4 {[%clk 0:06:12]} 32. Rxe4 {[%clk 0:14:50]} 32... Rxe4
{[%clk 0:06:24]} 33. Rxe4 {[%clk 0:13:58]} 33... Qc5 {[%clk 0:05:48]} 34. Re1
{[%clk 0:13:41]} 34... Qd5 {[%clk 0:05:23]} 35. Nh4 {[%clk 0:11:18]} 35... a4
{[%clk 0:02:59]} 36. Ng6+ {[%clk 0:11:42]} 36... Kg8 {[%clk 0:03:27]} 37. Ne5
{[%clk 0:07:44]} 37... Nxe5 {[%clk 0:02:56]} 38. Rxe5 {[%clk 0:08:10]} 1/2-1/2

[Variant "Standard"]
[Site "Europe Echecs"]

[Event "Championnat du monde jeunes U12"]
[Date "2024.11.25"]
[White "Liu, Richard Jingjie"]
[Black "Wang, Yu-Chi Xavier"]
[WhiteElo "1795"]
[BlackElo "1543"]
[Round "10.52"]
[Result "1-0"]
[TimeControl "5400+30"]

1. e4 {[%clk 1:30:58]} 1... e5 {[%clk 1:30:53]} 2. Nf3 {[%clk 1:31:26]} 2... Nc6
{[%clk 1:31:01]} 3. Bc4 {[%clk 1:31:54]} 3... Bc5 {[%clk 1:31:15]} 4. c3 {[%clk
1:32:21]} 4... Nf6 {[%clk 1:31:16]} 5. d4 {[%clk 1:32:49]} 5... exd4 {[%clk
1:31:36]} 6. cxd4 {[%clk 1:33:17]} 6... Bb4+ {[%clk 1:31:36]} 7. Nc3 {[%clk
1:33:41]} 7... Nxe4 {[%clk 1:31:22]} 8. O-O {[%clk 1:34:08]} 8... Bxc3 {[%clk
1:31:42]} 9. d5 {[%clk 1:34:31]} 9... Ne5 {[%clk 1:32:00]} 10. bxc3 {[%clk
1:35:00]} 10... Nxc4 {[%clk 1:31:16]} 11. Qd4 {[%clk 1:35:29]} 11... Ncd6 {[%clk
1:31:25]} 12. Qxg7 {[%clk 1:35:55]} 12... Qf6 {[%clk 1:30:38]} 13. Qxf6 {[%clk
1:36:24]} 13... Nxf6 {[%clk 1:30:49]} 14. Re1+ {[%clk 1:36:52]} 14... Nfe4
{[%clk 0:53:23]} 15. Nd2 {[%clk 1:36:34]} 15... f5 {[%clk 0:37:51]} 16. f3
{[%clk 1:36:54]} 16... O-O {[%clk 0:34:06]} 17. fxe4 {[%clk 1:37:18]} 17... Re8
{[%clk 0:33:11]} 18. e5 {[%clk 1:37:32]} 18... Nf7 {[%clk 0:30:12]} 19. Nf3
{[%clk 1:37:58]} 19... Kg7 {[%clk 0:18:25]} 20. c4 {[%clk 1:37:51]} 20... Rb8
{[%clk 0:16:08]} 21. a4 {[%clk 1:37:47]} 21... c6 {[%clk 0:15:58]} 22. Bb2
{[%clk 1:37:48]} 22... Kg6 {[%clk 0:15:35]} 23. Ra3 {[%clk 1:35:12]} 23... cxd5
{[%clk 0:14:14]} 24. cxd5 {[%clk 1:35:40]} 24... b5 {[%clk 0:14:10]} 25. Nh4+
{[%clk 1:33:42]} 25... Kg5 {[%clk 0:13:22]} 26. Nf3+ {[%clk 1:23:46]} 26... Kg6
{[%clk 0:13:27]} 27. axb5 {[%clk 1:24:13]} 27... Rxb5 {[%clk 0:13:24]} 28. Nh4+
Kg5 {[%clk 0:07:49]} 29. Bc1+ {[%clk 1:16:30]} 29... Kxh4 {[%clk 0:07:19]} 30.
Rh3+ {[%clk 1:16:50]} 30... Kg4 {[%clk 0:07:43]} 31. Rxh7 {[%clk 1:16:51]} 31...
Rxe5 {[%clk 0:02:18]} 32. h3+ {[%clk 1:16:38]} 32... Kg3 {[%clk 0:02:02]} 33.
Rf1 {[%clk 1:16:59]} 33... Rb3 1-0

[Variant "Standard"]
[Site "Europe Echecs"]

[Event "Championnat du monde jeunes U12"]
[Date "2024.11.25"]
[White "Su, Jayden Chenxuan"]
[Black "Mihajlovic, Stefan"]
[WhiteElo "1700"]
[BlackElo "1594"]
[Round "10.55"]
[Result "1-0"]
[TimeControl "5400+30"]

1. d4 {[%clk 1:30:56]} 1... Nf6 {[%clk 1:30:52]} 2. c4 {[%clk 1:31:22]} 2... e5
{[%clk 1:31:19]} 3. dxe5 {[%clk 1:31:40]} 3... Ng4 {[%clk 1:31:44]} 4. e4 {[%clk
1:31:52]} 4... Nxe5 {[%clk 1:31:22]} 5. f4 {[%clk 1:32:15]} 5... Ng6 {[%clk
1:27:51]} 6. Nc3 {[%clk 1:32:30]} 6... Bb4 {[%clk 1:27:49]} 7. Ne2 {[%clk
1:32:48]} 7... d6 {[%clk 1:26:11]} 8. a3 {[%clk 1:33:06]} 8... Bc5 {[%clk
1:24:28]} 9. b4 {[%clk 1:33:17]} 9... Bb6 {[%clk 1:24:13]} 10. Nd5 {[%clk
1:30:36]} 10... O-O {[%clk 1:19:38]} 11. Nxb6 {[%clk 1:26:03]} 11... axb6 {[%clk
1:16:36]} 12. f5 {[%clk 1:24:50]} 12... Ne5 {[%clk 1:09:37]} 13. Nc3 {[%clk
1:22:54]} 13... Nbc6 {[%clk 1:03:33]} 14. Be2 {[%clk 1:18:51]} 14... Nxb4 {[%clk
1:02:43]} 15. Bb2 {[%clk 1:16:52]} 15... Nbc6 {[%clk 1:01:18]} 16. O-O {[%clk
1:16:29]} 16... Na5 {[%clk 0:59:59]} 17. f6 {[%clk 1:12:32]} 17... Naxc4 {[%clk
0:58:35]} 18. Bxc4 {[%clk 1:12:44]} 18... Nxc4 {[%clk 0:58:49]} 19. Bc1 {[%clk
1:13:04]} 19... gxf6 {[%clk 0:55:37]} 20. Nd5 {[%clk 1:12:20]} 20... f5 {[%clk
0:54:02]} 21. exf5 {[%clk 1:11:43]} 21... Ne5 {[%clk 0:51:16]} 22. Bh6 {[%clk
1:07:56]} 22... Re8 {[%clk 0:50:47]} 23. Qh5 {[%clk 1:06:43]} 23... f6 {[%clk
0:49:12]} 24. Nxf6+ {[%clk 1:06:41]} 1-0

[Variant "Standard"]
[Site "Europe Echecs"]